Cogmind - Beta 10.1 @@@ ROGUE MODE // 2020.09.30 @ 03:15:27 Player: Chiefwannatoke Result: Destroyed by G-47 Trooper with Particle Gun Performance ------------- Evolutions (0) 0 Regions Visited (2) 400 Robots Destroyed (16) 80 Value Destroyed (209) 209 Prototype IDs (2) 40 Alien Tech Used (0) 0 Bonus (0) 0 TOTAL SCORE: 729 Bonus ------- None Cogmind --------- Core Integrity 0/250 Matter 300/300 Energy 100/100 System Corruption 16% Temperature Cool (9) Movement Core (150) Ox2 Location -10/Mines Parts ------- > --- POWER (1) -------- (None) > --- PROPULSION (2) --- (None) > --- UTILITY (2) ------ Medium Storage Unit > --- WEAPON (2) ------- (None) > --- INVENTORY (8) ---- Improved Ion Engine Aluminum Leg Aluminum Leg Aluminum Leg Structural Scanner Improved Sensor Array Signal Interpreter Peak State ------------ > --- POWER ------------ Improved Ion Engine > --- PROPULSION ------- Aluminum Leg Carbon-fiber Leg > --- UTILITY ---------- Heat Sink Medium Storage Unit > --- WEAPON ----------- Particle Gun Particle Gun > --- INVENTORY -------- Improved Ion Engine Aluminum Leg Aluminum Leg Aluminum Leg Structural Scanner Improved Sensor Array Signal Interpreter Mini Grenade Launcher [Rating: 13] Favorites ----------- Power Improved Ion Engine Engine Improved Ion Engine Propulsion Aluminum Leg Leg Aluminum Leg Utility Medium Storage Unit Device Heat Sink Storage Medium Storage Unit Weapon Particle Gun Energy Gun Particle Gun Ballistic Gun Assault Rifle Launcher Missile Launcher Build | -11 -10 -10 ------- Run | Scr Mat Min Slots Evolved . | . . . Power . | . . . Propulsion . | . . . Utility . | . . . Weapon . | . . . Parts Attached 20 | 7 9 4 Power 2 | 1 1 . Engine 2 | 1 1 . Core . | . . . Reactor . | . . . Propulsion 4 | 2 . 2 Treads . | . . . Leg 4 | 2 . 2 Wheel . | . . . Hover . | . . . Flight . | . . . Utility 5 | 1 4 . Device 2 | . 2 . Storage 3 | 1 2 . Processor . | . . . Hackware . | . . . Protection . | . . . Artifact . | . . . Weapon 9 | 3 4 2 Energy Gun 5 | 1 3 1 Energy Cannon . | . . . Ballistic Gun 3 | 2 1 . Ballistic Cannon . | . . . Launcher 1 | . . 1 Special Weapon . | . . . Impact Weapon . | . . . Slashing Weapon . | . . . Piercing Weapon . | . . . Special Melee Weapon . | . . . Unidentified Prototypes . | . . . Parts Lost 8 | . 2 6 Power 1 | . . 1 Propulsion 2 | . . 2 Utility . | . . . Weapon 5 | . 2 3 Highest Loss Streak 4 | . 2 4 Average Slot Usage (%) 93 | . 95 90 Engine 13 | . 14 12 Leg 27 | . 28 26 Device 13 | . 13 13 Storage 14 | . 14 14 Energy Gun 19 | . 18 19 Ballistic Gun 3 | . 5 . Naked Turns . | . . . Heaviest Build 26 | 13 26 22 Greatest Support 25 | 20 20 25 Greatest Overweight (x) 2 | 2 1 2 Average Overweight (x) . | . . . Largest Inventory Capacity 10 | 6 10 8 Average Capacity 7 | 5 7 8 Most Carried 8 | 3 8 8 Average Carried 6 | . 6 7 Final Capacity 8 | 6 8 8 Final Carried 7 | 2 7 7 Class Distribution -------------------- 100% | Mutant Dominant Class ---------------- Mutant | -10/Materials Mutant | -10/Mines Resources | -11 -10 -10 ----------- Run | Scr Mat Min Matter Collected 445 | 200 167 78 Remotely . | . . . Salvage Created 265 | . 225 40 Parts 14 | . 14 . Haulers Intercepted . | . . . Recyclers Shooed . | . . . Parts Field Recycled . | . . . Retrieved Matter . | . . . Parts Self-Destructed . | . . . Prevented . | . . . Kills | -11 -10 -10 ------- Run | Scr Mat Min Combat Hostiles Destroyed 16 | . 10 6 Guns 12 | . 10 2 AOE 4 | . . 4 Classes Destroyed 3 | . 2 1 Swarmer 6 | . 6 . Grunt 4 | . 4 . Assembled 6 | . . 6 Best Kill Streak 3 | . 3 3 Combat Bots Only 3 | . 3 3 Max Kills in Single Turn 1 | . 1 1 Gunslinging . | . . . Exploded 1 | . . 1 Melee . | . . . Uniques/NPCs Destroyed . | . . . Combat | -11 -10 -10 -------- Run | Scr Mat Min Damage Taken 959 | . 397 562 Core 254 | . 107 147 Absorbed by Shields . | . . . Core Remaining (%) 100 | 100 . . Volleys Fired 43 | . 25 18 Largest 2 | . 2 2 Hottest 130 | . 130 130 Shots Fired 77 | . 46 31 Gun 72 | . 46 26 Cannon . | . . . Launcher 5 | . . 5 Special . | . . . Kinetic 4 | . 4 . Thermal 68 | . 42 26 Explosive 5 | . . 5 Electromagnetic . | . . . Robot Hit Streak 5 | . 5 5 Robot Miss Streak 4 | . 4 4 Penetration Max . | . . . Secondary Targets 2 | . 2 . Max Gunslinging Chain 1 | . 1 . Shots Hit Robots 40 | . 24 16 Core Hits 27 | . 13 14 Critical Hits 1 | . 1 . Critical Kills 1 | . 1 . Critical Parts Destroyed . | . . . Melee Attacks . | . . . Impact . | . . . Slashing . | . . . Piercing . | . . . Sneak Attacks . | . . . Combat Hostiles . | . . . Follow-up Attacks . | . . . Damage Inflicted 756 | . 329 427 Guns 467 | . 329 138 Cannons . | . . . Explosions 282 | . . 282 Melee . | . . . Ramming 7 | . . 7 Kinetic 41 | . 41 . Thermal 426 | . 288 138 Explosive 282 | . . 282 Electromagnetic . | . . . Impact . | . . . Slashing . | . . . Piercing . | . . . Highest Corruption 16 | . . 16 Average Corruption 10 | . . 10 Corruption Purged . | . . . Effects 6 | . . 6 Message Errors 1 | . . 1 Heat Flow Errors 2 | . . 2 Energy Discharges 1 | . . 1 Parts Rejected 1 | . . 1 Data Loss (minor) 1 | . . 1 Overload Shots . | . . . Overflow Damage 3 | . . 3 Projectiles . | . . . Explosions 3 | . . 3 Melee . | . . . Knockbacks . | . . . Impact . | . . . Kinetic . | . . . Secondary . | . . . Self-Inflicted Damage 164 | . . 164 Shots 5 | . . 5 Rammed 4 | . . 4 Targets Rammed 5 | . . 5 Kicked 1 | . . 1 Crushed . | . . . Highest Temperature 336 | . 205 336 Average Temperature 101 | . 81 126 Received Heat Transfer 99 | . 48 51 Effects 3 | . 1 2 Energy Bleed 1 | . 1 . Interference 2 | . . 2 Siege Activations . | . . . Robots Corrupted . | . . . Combat Hostiles . | . . . Parts Fried . | . . . Impact Corruptions . | . . . Robots Melted . | . . . Combat Hostiles . | . . . Parts Melted 3 | . 3 . Heat Transferred 1073 | . 740 333 Parts Sabotaged . | . . . Parts Stolen . | . . . Parts Stripped . | . . . Power Chain Reactions . | . . . Missiles Intercepted . | . . . Alert | -11 -10 -10 ------- Run | Scr Mat Min Peak Influence 205 | . 205 15 Initial . | . . . Average 42 | . 67 . Maximum Alert Level 1 | . 1 . Low Security (%) 98 | 100 98 100 Level 1 1 | . 1 . Level 2 . | . . . Level 3 . | . . . Level 4 . | . . . Level 5 . | . . . High Security . | . . . Max Security . | . . . Squads Dispatched 1 | . 1 . Investigation . | . . . Extermination . | . . . Reinforcement 1 | . 1 . Assault . | . . . Garrison . | . . . Intercept . | . . . Construction Impeded . | . . . Haulers Reinforced . | . . . Stealth | -11 -10 -10 --------- Run | Scr Mat Min Distress Signals 1 | . 1 . Communications Jammed . | . . . Distress Signals . | . . . Times Spotted 29 | . 16 13 Peak Tracking Total 4 | . 3 4 Tactical Retreats 3 | . . 3 Traps | -11 -10 -10 ------- Run | Scr Mat Min Traps Triggered . | . . . Indirectly . | . . . Trap Hack Attempts . | . . . Triggered . | . . . Disarmed . | . . . Reprogrammed . | . . . Reused . | . . . Traps Extracted . | . . . Installed . | . . . Triggered 2 | . . 2 Machines | -11 -10 -10 ---------- Run | Scr Mat Min Machines Disabled . | . . . Max in Single Turn . | . . . Machines Sabotaged . | . . . Garrisons Compromised . | . . . Overloaded Fab Kills . | . . . Fab Network Shutdowns . | . . . Hacking | -11 -10 -10 --------- Run | Scr Mat Min Machines Accessed 8 | . 7 1 Terminals 6 | . 6 . Fabricators . | . . . Repair Stations . | . . . Recycling Units 1 | . 1 . Scanalyzers . | . . . Garrison Access . | . . . Total Hacks 19 | . 18 1 Successful 16 | . 15 1 Failed 3 | . 3 . Catastrophic . | . . . Database Lockouts . | . . . Manual 7 | . 7 . Terminals 17 | . 17 . Fabricators . | . . . Repair Stations . | . . . Recycling Units 1 | . 1 . Scanalyzers . | . . . Garrison Access . | . . . Terminal Hacks 11 | . 10 1 Record 4 | . 4 . Prototype ID Bank 1 | . 1 . Open Door 1 | . . 1 Branch Access Points 1 | . 1 . Machine Index 1 | . 1 . Alert Level 1 | . 1 . Unreport Threat 1 | . 1 . Locate Traps 1 | . 1 . Fabricator Hacks . | . . . Repair Station Hacks . | . . . Recycling Unit Hacks 1 | . 1 . Report Inventory 1 | . 1 . Scanalyzer . | . . . Garrison Access Hacks . | . . . Unauthorized Hacks 4 | . 4 . Terminals 4 | . 4 . Assimilate 1 | . 1 . Botnet 3 | . 3 . Fabricators . | . . . Repair Stations . | . . . Recycling Units . | . . . Scanalyzers . | . . . Garrison Access . | . . . Data Cores Recovered . | . . . Used . | . . . Hacking Detections 4 | . 4 . Full Trace Events . | . . . Feedback Events . | . . . Feedback Blocked . | . . . Robot Schematics Acquired . | . . . Robots Built . | . . . Matter . | . . . Time . | . . . Total Robot Build Rating . | . . . Part Schematics Acquired . | . . . Parts Built . | . . . Matter . | . . . Time . | . . . Total Part Build Rating . | . . . Parts Repaired . | . . . Time . | . . . Parts Recycled . | . . . Recycled Matter . | . . . Retrieved Matter . | . . . Retrieved Components . | . . . Parts Scanalyzed . | . . . Part Schematics Acquired . | . . . Parts Damaged . | . . . Bothacking | -11 -10 -10 ------------ Run | Scr Mat Min Used RIF Installer . | . . . Robots Hacked . | . . . Non-combat . | . . . Combat . | . . . Robot Hacks Applied . | . . . Relay Couplers Released . | . . . Robots Rewired . | . . . Allies Hacked . | . . . Hacks Repelled . | . . . Allies | -11 -10 -10 -------- Run | Scr Mat Min Total Allies 1 | . 1 . Largest Group 1 | . 1 . Highest-Rated Group 10 | . 10 . Highest-Rated Ally 10 | . 10 . Total Orders . | . . . Ally Attacks . | . . . Total Damage . | . . . Kills . | . . . Allies Corrupted . | . . . Allies Melted . | . . . Intel | -11 -10 -10 ------- Run | Scr Mat Min Robot Analysis Total . | . . . Derelict Logs Recovered . | . . . Drone Launches . | . . . Drone Recoveries . | . . . Exploration | -11 -10 -10 ------------- Run | Scr Mat Min Turns Passed 1384 | 58 865 461 Spaces Moved 877 | 39 553 285 Core 21 | 13 . 8 Treads . | . . . Legs 856 | 26 553 277 Wheels . | . . . Hover . | . . . Flight . | . . . Fastest Speed 50 | 50 120 120 Average Speed 129 | 115 128 133 Slowest Speed 150 | 150 150 150 Overloaded Moves . | . . . Propulsion Burnouts . | . . . Robots Hopped . | . . . Cave-ins Triggered . | . . . Exploration Rate (%) 48 | 4 84 57 Regions Visited 2 Branch Regions 1 Pre-discovered Areas . | . . . Known Exits Taken 1 | . 1 . Unknown Exits Taken 1 | 1 . . Scrap Searched 2 | . . 2 Spaces Dug . | . . . Terrain Destroyed 63 | . . 63 Melee . | . . . Projectile . | . . . AOE 63 | . . 63 Terrain Rammed . | . . . Walls Destroyed . | . . . Machines Disabled . | . . . Actions | -11 -10 -10 --------- Run | Scr Mat Min Total 1051 | 49 668 334 Wait 76 | . 58 18 Move 875 | 38 552 285 Hop . | . . . Pick Up 16 | 3 11 2 Fast Attach 10 | 6 4 . Attach 3 | . 1 2 Detach 1 | . 1 . Swap 7 | 1 4 2 Drop 15 | 1 12 2 Fire 43 | . 25 18 Melee . | . . . Ram 1 | . . 1 Kick 4 | . . 4 Crush . | . . . Escape Stasis . | . . . Rewire . | . . . Trap . | . . . Miscellaneous . | . . . Route ------- -11/Scrapyard -10/Materials (discovered 4 exits: [*Mat x3] / *Min) -10/Mines (discovered 1 exit: [*Mat]) History --------- Turn | Location | Event 15 | -11/Scrapyard | Discovered new exit (range 15) 59 | -11/Scrapyard | Entered Materials 245 | -10/Materials | Discovered new exit (range 10) 287 | -10/Materials | Identified exit to Mines 307 | -10/Materials | Build established: Mutant 348 | -10/Materials | Discovered new exit (range 15) 651 | -10/Materials | Discovered new exit (range 15) 924 | -10/Materials | Entered Mines 1002 | -10/Mines | Discovered new exit (range 11) 1094 | -10/Mines | Met a Derelict who couldn't figure out how to use a Trap Extractor 1128 | -10/Mines | Assembled infested the area 1133 | -10/Mines | Assisted by a Guerilla fighting off Assembled 1248 | -10/Mines | Core integrity fell below 50% 1265 | -10/Mines | Core integrity fell below 20% 1326 | -10/Mines | Found a hidden stash of uninstalled traps 1331 | -10/Mines | System corruption reached 10% 1385 | -10/Mines | Destroyed by G-47 Trooper with Particle Gun Last Messages --------------- 01330_ Missile Launcher destroyed. 01330_ Imp. Ion Engine destroyed. 01330_ System corrupted by crushing effect (+3). 01330_ System corrupted by crushing effect (+1). 01333_ Dropped Proton Bomb Trap. 01338_ QL9ICXIQ5=5V,PS6:|PW|TQO 01355_ Aluminum Leg destroyed. 01355_ System corrupted by crushing effect (+3). 01356_ System corrupted: Heat flow error (+247). 01364_ Slammed into G-34 Mercenary. 01365_ Kicked G-34 Mercenary out of the way. 01366_ Slammed into G-34 Mercenary. 01366_ Destabilizing: System corrupted (+1). 01367_ Slammed into G-34 Mercenary. 01368_ Carbon-fiber Leg destroyed. 01371_ G-34 Mercenary Aluminum Leg severed. 01374_ System corrupted: Heat Sink rejected. 01374_ as-75531 destroyed. 01378_ as-82512 destroyed. 01381_ Slammed into G-34 Mercenary. Map ----- +----------------------------------------------------+ | ???###?????????????????# &% ##??????# | | ???????????????????????#### &*!% #??????? | | ??????????????????#########& %=%#??????? | | ???????????????# &##!=#??????? | | ???????? ?????????# ###### #??%#??????? | | ???????? ?????????# ###??# &#???#??????? | | ???????? ???????## ##?# #??????????? | | ???????? ??????## ### #??????????? | | ????????# ??????# """ ## #??????????? | | ????????# ?????## """ #??????????? | | ????????# ?????# """ ####??????????? | | ????????# ????## ##?????????????? | | ????????# ????# ####??????????????? | | ??????### ##?## ###?????????????????? | | ????### ### ##???????????????????? | | ???## ##????????????????????? | | ???# ###?????????????????????? | | ???## ##???????????????????????? | | ????## ##????????????????????????? | | ?????# ### ###?????????????????????????? | | ?????#????# #???????????????????????????? | | ??????????# #???????????????????????????? | | ??????????# #?#######???????????????????? | | ??????????# ### % #???????????????????? | | ??????????# %="""#???????????????????? | | ??????????#####g@ ""#???????????????????? | | ??????????????# """#???????????????????? | | ??????????????# g%! #???????????????????? | | ??????????????#######???????????????????? | | ????????????????????????????????????????? | | ????????????????????????????????????????? | | ????????????????????????????????????????? | | ????????????????????????????????????????? | | ????????????????????????????????????????? | | ????????????????????????????????????????? | | ????????????????????????????????????????? | | ????????????????????????????????????????? | | ????????????????????????????????????????? | | ????????????????????????????????????????? | | ????????????????????????????????????????? | | ????????????????????????????????????????? | | ????????????????????????????????????????? | | | | | | | | | | | | | | | | | +----------------------------------------------------+ Best States ------------- Heat Dissipation 35 Energy Generation 12 Energy Capacity 265 Matter Stores 300 Matter Capacity 300 Sight Range 16 Terrain Scan Density 10 Evasion (%) 40 Item Schematics ----------------- None Robot Schematics ------------------ None Fabricated ------------ Nothing Alien Tech Used ----------------- None Achievements -------------- Quantum Hacking Challenges ------------ None Game ------ Seed ContainmentTransportBeam Manual? 0 Play Time 00:15:18 Cumulative 9.1 hours Start 2020.09.30 @ 03:00:28 End 2020.09.30 @ 03:15:27 Sessions 1 Manual Loads 0 Difficulty Rogue Special Mode None Game No. 7 Rogue 7 Adventurer 0 Explorer 0 Win Type - Total 0 Types 0/0/0/0/0/0/0/0/0 Lore% 25 Gallery% 28 Achievement% 26 Wizard Run 0 Options --------- ASCII 0 Keyboard 0 Movement Numpad Keybinds 0 Fullscreen 1 Font 18/SmallcapsGlow Map View 76x50 Tactical HUD 1 Map Filters NONE Filters NONE Steam 1 RUN: e0aa0713-5950-44f4-bf35-adef8576a6ad